fUST/lending_fUST_20251001
["ID","MTS","AMOUNT","RATE_DAILY","PERIOD"]
[388673259,1759313465375,-1273.31146475,0.00020568,2]
[388673260,1759313465384,-1500.0,0.00020568,2]
[388673261,1759313465395,-1038.22892979,0.00020568,2]
[388673262,1759313465405,-1500.92613551,0.00020568,2]
[388673263,1759313465416,-1500.0,0.00020568,2]
[388673264,1759313465426,-1139.71961339,0.00020568,2]
[388673265,1759313465435,-1500.0,0.00020568,2]
[388673266,1759313465445,-1500.0,0.00020568,2]
[388673267,1759313465454,-1500.0,0.00020568,2]
[388673268,1759313465463,-905.74390608,0.00020568,2]
[388673269,1759313465472,-1500.0,0.00020568,2]
[388673270,1759313465481,-1010.43957627,0.00020568,2]
[388673271,1759313465491,-1500.0,0.00020568,2]
[388673272,1759313465500,-1501.62996691,0.00020568,2]
[388673273,1759313465510,-1500.0,0.00020568,2]
[388673274,1759313465519,-1500.0,0.00020568,2]
[388673275,1759313465528,-1500.0,0.00020568,2]
[388673276,1759313465539,-803.77075618,0.00020568,2]
[388673277,1759313465549,-1500.0,0.00020568,2]
[388673278,1759313465559,-318.02417524,0.00020568,2]
[388673279,1759313465570,-3647.24286234,0.00020612,2]
[388673280,1759313465579,-151.0,0.00020619,2]
[388673281,1759313465589,-750.87,0.00020619,2]
[388673282,1759313465599,-2265.48,0.00020619,2]
[388673283,1759313465610,-549.1,0.00020619,2]
[388673284,1759313465619,-500.0,0.0002062,2]
[388673285,1759313465629,-1138.52,0.0002062,2]
[388673286,1759313465638,-610.07,0.0002062,2]
[388673287,1759313465647,-336.0,0.00020633,2]
[388673288,1759313465658,-370.57410358,0.00020673,2]
[388673289,1759313465668,-1480.81411792,0.00020673,2]
[388673290,1759313465678,-259.13971485,0.0002068,2]
[388673291,1759313465687,-245.0,0.0002068,2]
[388673292,1759313465697,-1000.0,0.0002068,2]
[388673293,1759313465708,-500.0,0.0002068,2]
[388673294,1759313465717,-260.0,0.00020681,2]
[388673295,1759313465726,-151.0,0.000207,4]
[388673296,1759313465736,-1439.71726545,0.00020717,2]
[388673297,1759313465745,-295.523966,0.00020721,2]
[388673298,1759313465754,-153.889899,0.00020721,2]
[388673299,1759313465763,-1740.70881781,0.00020746,2]
[388673300,1759313465774,-168.0,0.00020776,2]
[388673301,1759313465783,-800.0,0.00020781,2]
[388673302,1759313465794,-1680.0,0.00020791,2]
[388673303,1759313465805,-420.0,0.00020791,2]
[388673304,1759313465816,-420.0,0.00020791,2]
[388673305,1759313465826,-151.0,0.000208,4]
[388673306,1759313465835,-151.0,0.0002081,2]
[388673307,1759313465845,-800.0,0.00020812,2]
[388673308,1759313465856,-800.0,0.00020816,2]
[388673309,1759313465866,-800.0,0.00020816,2]
[388673310,1759313465875,-2000.0,0.00020816,2]
[388673311,1759313465884,-2000.0,0.00020816,2]
[388673312,1759313465894,-2000.0,0.00020816,2]
[388673313,1759313465903,-1547.67995103,0.00020816,2]
[388673314,1759313465913,-2000.0,0.00020816,2]
[388673315,1759313465923,-2000.0,0.00020816,2]
[388673316,1759313465934,-2000.0,0.00020816,2]
[388673317,1759313465943,-2000.0,0.00020816,2]
[388673318,1759313465953,-2000.0,0.00020816,2]
[388673319,1759313465962,-2000.0,0.00020816,2]
[388673320,1759313465972,-151.0,0.0002082,2]
[388673321,1759313465981,-151.0,0.0002082,2]
[388673322,1759313465990,-500.0,0.00020821,2]
[388673323,1759313466095,-1014.38,0.00020821,2]
[388673324,1759313466106,-394.72960117,0.00020821,2]
[388673325,1759313466116,-571.58,0.00020821,2]
[388673326,1759313466125,-500.0,0.00020821,2]
[388673327,1759313466134,-500.0,0.00020821,2]
[388673328,1759313466144,-841.29,0.00020821,2]
[388673329,1759313466153,-500.0,0.00020821,2]
[388673330,1759313466163,-500.0,0.00020821,2]
[388673331,1759313466172,-500.0,0.00020821,2]
[388673332,1759313466181,-500.0,0.00020821,2]
[388673333,1759313466191,-749.55,0.00020821,2]
[388673334,1759313466200,-1052.97,0.00020821,2]
[388673335,1759313466209,-976.03,0.00020821,2]
[388673336,1759313466219,-367.90000577,0.00020821,2]
[388673337,1759313466228,-500.0,0.00020821,2]
[388673338,1759313466238,-561.75,0.00020821,2]
[388673339,1759313466247,-1101.84,0.00020821,2]
[388673340,1759313466257,-500.0,0.00020821,2]
[388673341,1759313466267,-500.0,0.00020821,2]
[388673342,1759313466277,-1020.46,0.00020821,2]
[388673343,1759313466287,-151.0,0.00020821,2]
[388673344,1759313466297,-500.0,0.00020821,2]
[388673345,1759313466307,-500.0,0.00020821,2]
[388673346,1759313466321,-694.4,0.00020821,2]
[388673347,1759313466331,-745.06,0.00020821,2]
[388673348,1759313466341,-500.0,0.00020821,2]
[388673349,1759313466351,-500.0,0.00020821,2]
[388673350,1759313466363,-658.19,0.00020821,2]
[388673351,1759313466372,-500.0,0.00020821,2]
[388673352,1759313466382,-500.0,0.00020821,2]
[388673353,1759313466395,-1206.09,0.00020821,2]
[388673354,1759313466404,-996.59,0.00020821,2]
[388673355,1759313466413,-1373.03,0.00020821,2]
[388673356,1759313466422,-500.0,0.00020821,2]
[388673357,1759313466431,-1181.97,0.00020821,2]
[388673358,1759313466441,-3165.83,0.00020821,2]
[388673359,1759313466450,-1295.66,0.00020821,2]
[388673360,1759313466462,-782.85,0.00020821,2]
[388673361,1759313466471,-500.0,0.00020821,2]
[388673362,1759313466481,-500.0,0.00020821,2]
[388673363,1759313466490,-512.09024817,0.00020821,2]
[388673364,1759313466499,-1029.47,0.00020821,2]
[388673365,1759313466509,-500.0,0.00020821,2]
[388673366,1759313466518,-515.04,0.00020821,2]
[388673367,1759313466529,-1888.19,0.00020821,2]
[388673368,1759313466538,-903.96,0.00020821,2]
[388673369,1759313466547,-500.0,0.00020821,2]
[388673370,1759313466556,-500.0,0.00020821,2]
[388673371,1759313466566,-645.87,0.00020821,2]
[388673372,1759313466575,-500.0,0.00020821,2]
[388673373,1759313466585,-2998.81,0.00020821,2]
[388673374,1759313466594,-500.0,0.00020821,2]
[388673375,1759313466603,-1734.48,0.00020821,2]
[388673376,1759313466616,-500.0,0.00020821,2]
[388673377,1759313466626,-626.15357723,0.00020821,2]
[388673378,1759313466636,-500.0,0.00020821,2]
[388673379,1759313466646,-1411.59,0.00020821,2]
[388673380,1759313466656,-500.0,0.00020821,2]
[388673381,1759313466667,-740.79,0.00020821,2]
[388673382,1759313466679,-500.0,0.00020821,2]
[388673383,1759313466691,-500.0,0.00020821,2]
[388673384,1759313466702,-992.76,0.00020821,2]
[388673385,1759313466714,-500.0,0.00020821,2]
[388673386,1759313466724,-500.0,0.00020821,2]
[388673387,1759313466734,-500.0,0.00020821,2]
[388673388,1759313466744,-3974.55,0.00020821,2]
[388673389,1759313466756,-541.57,0.00020821,2]
[388673390,1759313466766,-500.0,0.00020821,2]
[388673391,1759313466777,-500.0,0.00020821,2]
[388673392,1759313466788,-545.5,0.00020821,2]
[388673393,1759313466798,-500.0,0.00020821,2]
[388673394,1759313466808,-500.0,0.00020821,2]
[388673395,1759313466818,-500.0,0.00020821,2]
[388673396,1759313466828,-500.0,0.00020821,2]
[388673397,1759313466839,-1555.59,0.00020821,2]
[388673398,1759313466848,-500.0,0.00020821,2]
[388673399,1759313466858,-634.21,0.00020821,2]
[388673400,1759313466868,-500.0,0.00020821,2]
[388673401,1759313466877,-500.0,0.00020821,2]
[388673402,1759313466889,-500.0,0.00020821,2]
[388673403,1759313466898,-3240.37,0.00020821,2]
[388673404,1759313466908,-1181.3,0.00020821,2]
[388673405,1759313466917,-1630.64,0.00020821,2]
[388673406,1759313466927,-500.0,0.00020821,2]
[388673407,1759313466936,-500.0,0.00020821,2]
[388673408,1759313466945,-500.0,0.00020821,2]
[388673409,1759313466955,-1213.28,0.00020821,2]
[388673410,1759313466964,-500.0,0.00020821,2]
[388673411,1759313466975,-582.95,0.00020821,2]
[388673412,1759313466985,-500.0,0.00020821,2]
[388673413,1759313466995,-500.0,0.00020821,2]
[388673414,1759313467005,-765.97,0.00020821,2]
[388673415,1759313467015,-500.0,0.00020821,2]
[388673416,1759313467025,-837.02,0.00020821,2]
[388673417,1759313467034,-500.0,0.00020821,2]
[388673418,1759313467043,-500.0,0.00020821,2]
[388673419,1759313467051,-500.0,0.00020821,2]
[388673420,1759313467060,-884.28,0.00020821,2]
[388673421,1759313467070,-500.0,0.00020821,2]
[388673422,1759313467079,-518.48,0.00020821,2]
[388673423,1759313467089,-1079.71,0.00020821,2]
[388673424,1759313467099,-500.0,0.00020821,2]
[388673425,1759313467108,-500.0,0.00020821,2]
[388673426,1759313467117,-616.19465556,0.00020821,2]
[388673427,1759313467129,-4574.16,0.00020821,2]
[388673428,1759313467139,-500.0,0.00020821,2]
[388673429,1759313467148,-866.19,0.00020821,2]
[388673430,1759313467157,-500.0,0.00020821,2]
[388673431,1759313467166,-2952.94,0.00020821,2]
[388673432,1759313467175,-500.0,0.00020821,2]
[388673433,1759313467184,-924.86,0.00020821,2]
[388673434,1759313467193,-663.37,0.00020821,2]
[388673435,1759313467202,-2377.38,0.00020821,2]
[388673436,1759313467213,-500.0,0.00020821,2]
[388673437,1759313467222,-500.0,0.00020821,2]
[388673438,1759313467231,-4347.91,0.00020821,2]
[388673439,1759313467240,-1063.86,0.00020821,2]
[388673440,1759313467249,-817.91,0.00020821,2]
[388673441,1759313467258,-13596.8,0.00020821,2]
[388673442,1759313467268,-500.0,0.00020821,2]
[388673443,1759313467277,-2347.65,0.00020821,2]
[388673444,1759313467286,-1170.22,0.00020821,2]
[388673445,1759313467295,-542.85,0.00020821,2]
[388673446,1759313467304,-500.0,0.00020821,2]
[388673447,1759313467317,-500.0,0.00020821,2]
[388673448,1759313467327,-831.98,0.00020821,2]
[388673449,1759313467336,-500.0,0.00020821,2]
[388673450,1759313467344,-500.0,0.00020821,2]
[388673451,1759313467354,-810.92,0.00020821,2]
[388673452,1759313467363,-1077.3,0.00020821,2]
[388673453,1759313467372,-2091.33,0.00020821,2]
[388673454,1759313467382,-502.63,0.00020821,2]
[388673455,1759313467393,-525.38,0.00020821,2]
[388673456,1759313467402,-500.0,0.00020821,2]
[388673457,1759313467412,-1988.74,0.00020821,2]
[388673458,1759313467421,-500.0,0.00020821,2]
[388673459,1759313467429,-633.46,0.00020821,2]
[388673460,1759313467438,-5404.18,0.00020821,2]
[388673461,1759313467447,-4119.01,0.00020821,2]
[388673462,1759313467456,-500.0,0.00020821,2]
[388673463,1759313467465,-500.0,0.00020821,2]
[388673464,1759313467475,-960.51,0.00020821,2]
[388673465,1759313467484,-1053.83,0.00020821,2]
[388673466,1759313467493,-1933.08,0.00020821,2]
[388673467,1759313467502,-1539.85,0.00020821,2]
[388673468,1759313467511,-500.0,0.00020821,2]
[388673469,1759313467520,-1111.97,0.00020821,2]
[388673470,1759313467529,-1038.31,0.00020821,2]
[388673471,1759313467538,-2522.32,0.00020821,2]
[388673472,1759313467547,-725.94,0.00020821,2]
[388673473,1759313467556,-500.0,0.00020821,2]
[388673474,1759313467565,-1908.23,0.00020821,2]
[388673475,1759313467575,-846.91,0.00020821,2]
[388673476,1759313467584,-500.0,0.00020821,2]
[388673477,1759313467690,-500.0,0.00020821,2]
[388673478,1759313467700,-2615.25,0.00020821,2]
[388673479,1759313467709,-1718.53,0.00020821,2]
[388673480,1759313467718,-2181.37,0.00020821,2]
[388673481,1759313467728,-500.0,0.00020821,2]
[388673482,1759313467737,-1789.62,0.00020821,2]
[388673483,1759313467747,-1566.23,0.00020821,2]
[388673484,1759313467755,-699.54,0.00020821,2]
[388673485,1759313467765,-2212.33,0.00020821,2]
[388673486,1759313467773,-3679.55,0.00020821,2]
[388673487,1759313467783,-463.31466835,0.00020821,2]
[388673488,1759313467792,-740.14,0.00020821,2]
[388673489,1759313467801,-766.66,0.00020821,2]
[388673490,1759313467810,-288.57734289,0.00020821,2]
[388673491,1759313468054,-500.0,0.00019166,2]
[388673492,1759313468064,-1302.14265711,0.00020821,2]
[388673493,1759313468073,-624.00709932,0.00020821,2]
[388673494,1759313468083,-1278.42,0.00020821,2]
[388673495,1759313468092,-500.0,0.00020821,2]
[388673496,1759313468102,-500.0,0.00020821,2]
[388673497,1759313468111,-500.0,0.00020821,2]
[388673498,1759313468120,-1686.96,0.00020821,2]
[388673499,1759313468129,-2397.74,0.00020821,2]
[388673500,1759313468139,-500.0,0.00020821,2]
[388673501,1759313468149,-831.34,0.00020821,2]
[388673502,1759313468158,-500.0,0.00020821,2]
[388673503,1759313468168,-3430.68,0.00020821,2]
[388673504,1759313468177,-1290.72,0.00020821,2]
[388673505,1759313468186,-532.51,0.00020821,2]
[388673506,1759313468205,-500.0,0.00020821,2]
[388673507,1759313468223,-2009.25,0.00020821,2]
[388673508,1759313468244,-5588.63,0.00020821,2]
[388673509,1759313468265,-1091.56,0.00020821,2]
[388673510,1759313468287,-2058.63,0.00020821,2]
[388673511,1759313468305,-500.0,0.00020821,2]
[388673512,1759313468328,-624.66,0.00020821,2]
[388673513,1759313468342,-723.22,0.00020821,2]
[388673514,1759313468362,-1850.45,0.00020821,2]
[388673515,1759313468382,-718.71,0.00020821,2]
[388673516,1759313468400,-500.0,0.00020821,2]
[388673517,1759313468416,-2970.72,0.00020821,2]
[388673518,1759313468435,-500.0,0.00020821,2]
[388673519,1759313468452,-883.6,0.00020821,2]
[388673520,1759313468467,-500.0,0.00020821,2]
[388673521,1759313468483,-753.51,0.00020821,2]
[388673522,1759313468498,-2608.33,0.00020821,2]
[388673523,1759313468513,-500.0,0.00020821,2]
[388673524,1759313468528,-500.0,0.00020821,2]
[388673525,1759313468543,-500.0,0.00020821,2]
[388673526,1759313468558,-358.55901548,0.00020821,2]
[388673527,1759313468577,-614.50098452,0.00020821,2]
[388673528,1759313468593,-500.0,0.00020821,2]
[388673529,1759313468611,-2268.53,0.00020821,2]
[388673530,1759313468625,-2234.58,0.00020821,2]
[388673531,1759313468641,-204.37621563,0.00020821,2]
[388673532,1759313468657,-615.23,0.00020821,2]
[388673533,1759313468673,-2899.74,0.00020821,2]
[388673534,1759313468688,-1420.33,0.00020821,2]
[388673535,1759313468703,-500.0,0.00020821,2]
[388673536,1759313468718,-500.0,0.00020821,2]
[388673537,1759313468733,-683.1777062,0.00020821,2]
[388673538,1759313468759,-2668.27079199,0.00020821,2]
[388673539,1759313470693,-500.0,0.00019166,2]
[388673540,1759313470703,-500.0,0.00019166,2]
[388673541,1759313470713,-500.0,0.00019166,2]
[388673542,1759313470722,-500.0,0.00019166,2]
[388673543,1759313470732,-500.0,0.00019166,2]
[388673544,1759313470741,-500.0,0.00019166,2]
[388673545,1759313470751,-481.87849994,0.00019178,2]
[388673546,1759313470761,-500.0,0.00019178,2]
[388673547,1759313470770,-391.13208267,0.00019178,2]
[388673548,1759313550607,5443.03796966,0.00018978,2]
[388673549,1759313550632,10000.01,0.00018978,2]
[388673550,1759313550667,10000.01,0.00018978,2]
[388673551,1759313550694,10000.01,0.00018978,2]
[388673552,1759313550721,10000.01,0.00018978,2]
[388673553,1759313550747,10000.01,0.00018978,2]
[388673554,1759313550771,10000.01,0.00018978,2]
[388673555,1759313550795,10000.01,0.00018978,2]
[388673556,1759313550821,10000.01,0.00018978,2]
[388673557,1759313550846,10000.01,0.00018978,2]
[388673558,1759313550879,127355.84492834,0.00018978,2]
[388673559,1759313555880,250.470147,0.00018389,2]
[388673560,1759313563763,5000.0,0.00019008,2]
[388673561,1759313569138,226.55243602,0.00019077,2]
[388673563,1759313573525,1433.1924413,0.00018856,2]
[388673564,1759313573877,1433.1924413,0.0001903,2]
[388673565,1759313579566,5000.0,0.00019111,2]
[388673566,1759313581726,338.67716925,0.00019077,2]
[388673567,1759313585350,256.75905973,0.00019077,2]
[388673568,1759313587544,1311.6364524,0.00019111,2]
[388673569,1759313587566,3688.3635476,0.00019111,2]
[388673571,1759313602777,5000.0,0.00019111,2]
[388673572,1759313610652,1311.6464524,0.00019111,2]
[388673573,1759313610678,2076.20896824,0.00019111,2]
[388673575,1759313666272,216.03,0.00019,2]
[388673576,1759313669715,942.01629432,0.00019078,2]
[388673578,1759313696960,1433.1924413,0.00018991,2]
[388673579,1759313712522,5332.56229614,0.00019078,2]
[388673580,1759313712549,10000.01,0.00019078,2]
[388673581,1759313712571,10000.01,0.00019078,2]
[388673582,1759313712592,10000.01,0.00019078,2]
[388673583,1759313712621,10000.01,0.00019078,2]
[388673584,1759313712642,5383.14228322,0.00019078,2]
[388673585,1759313721496,3500.0,0.00019111,2]
[388673589,1759313822753,1116.86771678,0.00018961,2]
[388673590,1759313822774,316.79078345,0.00018961,2]
[388673591,1759313875154,9683.21921655,0.00019078,2]
[388673592,1759313875178,10000.01,0.00019078,2]
[388673593,1759313875202,10000.01,0.00019078,2]
[388673594,1759313875226,10000.01,0.00019078,2]
[388673595,1759313875251,4798.92018776,0.00019078,2]
[388673596,1759313950041,945.07022478,0.00019078,2]
[388673598,1759314033417,4256.01958746,0.00019078,2]
[388673599,1759314033439,10000.01,0.00019078,2]
[388673600,1759314033462,10000.01,0.00019078,2]
[388673601,1759314033484,10000.01,0.00019078,2]
[388673602,1759314033507,10000.01,0.00019078,2]
[388673603,1759314033529,5743.99041254,0.00019078,2]
[388673604,1759314077324,1433.65850024,0.00018939,2]
[388673606,1759314129994,170.309954,0.00018249,2]
[388673607,1759314137150,235.17305342,0.00019077,7]
[388673610,1759314151350,199.54412313,0.00019067,2]
[388673612,1759314196101,10000.01,0.00019078,2]
[388673613,1759314196124,10000.01,0.00019078,2]
[388673614,1759314196146,10000.01,0.00019078,2]
[388673615,1759314196168,10000.01,0.00019078,2]
[388673616,1759314196190,6157.5769291,0.00019078,2]
[388673617,1759314215722,1433.65850024,0.00019016,2]
[388673618,1759314235190,826.9364467,0.00019078,2]
[388673619,1759314288345,150.5,0.0002191,120]
[388673620,1759314288668,161.72,0.000219,120]
[388673625,1759314322417,400.0,0.00028,120]
[388673628,1759314354747,916.0,0.00028,120]
[388673629,1759314362541,1581.83812396,0.00019078,2]
[388673630,1759314362564,10000.01,0.00019078,2]
[388673631,1759314362586,10000.01,0.00019078,2]
[388673632,1759314362610,10000.01,0.00019078,2]
[388673633,1759314362632,10000.01,0.00019078,2]
[388673634,1759314362657,8418.17187604,0.00019078,2]
[388673635,1759314364183,199.40374989,0.00018825,2]
[388673636,1759314378032,300.0,0.000284,120]
[388673637,1759314378906,157.0,0.00024,120]
[388673638,1759314380329,157.0,0.000269,120]
[388673641,1759314407827,150.5,0.0002191,120]
[388673642,1759314408267,150.5,0.000219,120]
[388673643,1759314408708,161.77,0.0002189,120]
[388673647,1759314455222,250.470147,0.00018176,2]
[388673656,1759314506630,1131.96422707,0.00018,2]
[388673657,1759314506651,1379.50690097,0.00018,2]
[388673658,1759314517336,723.56939081,0.00019078,2]
[388673659,1759314518020,3933.68533101,0.00028767,120]
[388673660,1759314522914,7896.93370822,0.00019063,7]
[388673661,1759314522935,5847.61528481,0.00019063,7]
[388673662,1759314524662,4152.39471519,0.00019078,2]
[388673663,1759314524685,10000.01,0.00019078,2]
[388673664,1759314524708,10000.01,0.00019078,2]
[388673665,1759314524732,10000.01,0.00019078,2]
[388673666,1759314524759,10000.01,0.00019078,2]
[388673667,1759314524782,10000.01,0.00019078,2]
[388673668,1759314524805,5200.39393147,0.00019078,2]
[388673669,1759314567712,500.0,0.00027397,120]
[388673670,1759314605003,339.91,0.00034605,60]
[388673711,1759314631897,-300.0,0.00019164,2]
[388673713,1759314631906,-300.0,0.00019164,2]
[388673715,1759314631915,-300.0,0.00019164,2]
[388673717,1759314631924,-300.0,0.00019164,2]
[388673719,1759314631934,-1200.0,0.00019164,2]
[388673721,1759314631943,-1200.0,0.00019165,2]
[388673723,1759314631952,-500.0,0.00019166,2]
[388673725,1759314631961,-500.0,0.00019166,2]
[388673727,1759314631970,-500.0,0.00019166,2]
[388673728,1759314631979,-500.0,0.00019166,2]
[388673730,1759314631988,-500.0,0.00019166,2]
[388673731,1759314631997,-500.0,0.00019166,2]
[388673733,1759314632006,-500.0,0.00019166,2]
[388673734,1759314632015,-500.0,0.00019166,2]
[388673737,1759314632024,-500.0,0.00019166,2]
[388673740,1759314632033,-500.0,0.00019166,2]
[388673742,1759314632042,-500.0,0.00019166,2]
[388673744,1759314632051,-500.0,0.00019166,2]
[388673746,1759314632060,-500.0,0.00019166,2]
[388673748,1759314632070,-500.0,0.00019166,2]
[388673749,1759314632079,-308.25,0.00019168,3]
[388673750,1759314632088,-154.13,0.00019168,3]
[388673751,1759314632097,-462.4,0.00019168,3]
[388673752,1759314632107,-503.21058416,0.00019173,2]
[388673753,1759314632116,-500.0,0.00019173,2]
[388673754,1759314632126,-179.73134181,0.00019177,2]
[388673755,1759314632136,-500.0,0.00019177,2]
[388673756,1759314632149,-500.0,0.00019177,2]
[388673757,1759314632159,-500.0,0.00019177,2]
[388673758,1759314632168,-496.5435921,0.00019177,2]
[388673759,1759314632178,-559.53664518,0.00019177,2]
[388673760,1759314632187,-268.88802233,0.00019177,2]
[388673761,1759314632196,-398.4163161,0.00019177,2]
[388673762,1759314632206,-636.56665664,0.00019177,2]
[388673763,1759314632215,-500.0,0.00019177,2]
[388673764,1759314632224,-282.53707626,0.00019177,2]
[388673765,1759314632233,-282.47334361,0.00019177,2]
[388673766,1759314632243,-419.02011031,0.00019177,2]
[388673767,1759314632252,-190.49204894,0.00019177,2]
[388673768,1759314632261,-500.0,0.00019178,2]
[388673769,1759314632270,-500.0,0.00019178,2]
[388673770,1759314632279,-483.49479136,0.00019178,2]
[388673771,1759314632289,-500.0,0.00019178,2]
[388673772,1759314632299,-500.0,0.00019178,2]
[388673773,1759314632308,-500.0,0.00019178,2]
[388673774,1759314632317,-481.11446768,0.00019178,2]
[388673775,1759314632326,-480.0,0.00019178,2]
[388673776,1759314632335,-477.86955419,0.00019178,2]
[388673777,1759314632346,-500.0,0.00019178,2]
[388673778,1759314632355,-520.0,0.00019178,3]
[388673779,1759314632365,-394.17728598,0.00019178,2]
[388673780,1759314632375,-500.0,0.00019178,2]
[388673781,1759314632384,-500.0,0.00019178,2]
[388673782,1759314632393,-500.0,0.00019178,2]
[388673783,1759314632403,-500.0,0.00019178,2]
[388673784,1759314632412,-500.0,0.00019178,2]
[388673785,1759314632421,-813.66,0.00019178,2]
[388673786,1759314632432,-500.0,0.00019178,2]
[388673787,1759314632441,-1029.77,0.00019178,2]
[388673788,1759314632450,-500.0,0.00019178,2]
[388673789,1759314632459,-500.0,0.00019178,2]
[388673790,1759314632468,-500.0,0.00019178,2]
[388673791,1759314632478,-500.0,0.00019178,2]
[388673792,1759314632487,-500.0,0.00019178,2]
[388673793,1759314632496,-500.0,0.00019178,2]
[388673794,1759314632506,-480.0,0.00019178,2]
[388673795,1759314632515,-500.0,0.00019178,2]
[388673796,1759314632525,-500.0,0.00019178,2]
[388673797,1759314632535,-500.0,0.00019178,2]
[388673798,1759314632545,-926.84,0.00019178,2]
[388673799,1759314632554,-500.0,0.00019178,2]
[388673800,1759314632565,-500.0,0.00019178,2]
[388673801,1759314632576,-491.89105726,0.00019178,2]
[388673802,1759314632586,-500.0,0.00019178,2]
[388673803,1759314632597,-500.0,0.00019178,2]
[388673804,1759314632607,-480.19889746,0.00019178,2]
[388673805,1759314632617,-176.37749408,0.00019178,2]
[388673806,1759314632627,-500.0,0.00019178,2]
[388673807,1759314632639,-500.0,0.00019178,2]
[388673808,1759314632648,-480.0,0.00019178,2]
[388673809,1759314632659,-587.87,0.00019178,2]
[388673810,1759314632669,-500.0,0.00019178,2]
[388673811,1759314632679,-500.0,0.00019178,2]
[388673812,1759314632689,-500.0,0.00019178,2]
[388673813,1759314632699,-500.0,0.00019178,2]
[388673814,1759314632709,-500.0,0.00019178,2]
[388673815,1759314632718,-500.0,0.00019178,2]
[388673816,1759314632727,-500.0,0.00019178,2]
[388673817,1759314632736,-587.14,0.00019178,2]
[388673818,1759314632747,-971.75,0.00019178,2]
[388673819,1759314632758,-500.0,0.00019178,2]
[388673820,1759314632773,-512.09024817,0.00019178,2]
[388673821,1759314632782,-500.0,0.00019178,2]
[388673822,1759314632791,-500.0,0.00019178,2]
[388673823,1759314632804,-500.0,0.00019178,2]
[388673824,1759314632814,-500.0,0.00019178,2]
[388673825,1759314632824,-500.0,0.00019178,2]
[388673826,1759314632835,-500.0,0.00019178,2]
[388673827,1759314632846,-626.15357723,0.00019178,2]
[388673828,1759314632856,-500.0,0.00019178,2]
[388673829,1759314632865,-500.0,0.00019178,2]
[388673830,1759314632876,-555.59,0.00019178,2]
[388673831,1759314632887,-500.0,0.00019178,2]
[388673832,1759314632896,-500.0,0.00019178,2]
[388673833,1759314632908,-500.0,0.00019178,2]
[388673834,1759314632919,-500.0,0.00019178,2]
[388673835,1759314632930,-500.0,0.00019178,2]
[388673836,1759314632939,-500.0,0.00019178,2]
[388673837,1759314632948,-500.0,0.00019178,2]
[388673838,1759314632957,-726.05,0.00019178,2]
[388673839,1759314632967,-500.0,0.00019178,2]
[388673840,1759314632976,-500.0,0.00019178,2]
[388673841,1759314632986,-500.0,0.00019178,2]
[388673842,1759314632995,-500.0,0.00019178,2]
[388673843,1759314633004,-500.0,0.00019178,2]
[388673844,1759314633013,-500.0,0.00019178,2]
[388673845,1759314633023,-500.0,0.00019178,2]
[388673846,1759314633032,-616.19465556,0.00019178,2]
[388673847,1759314633042,-500.0,0.00019178,2]